bitfinex/quotes_SOLUSD_20251127
["timestamp","ask_amount","ask_price","bid_price","bid_amount"]
[1764255702857,3.12,141.34,141.31,7.79659576]
[1764255703052,10.19514773,141.34,141.32,0.72]
[1764255703672,3.12,141.34,141.32,0.72]
[1764255704874,10.19515595,141.34,141.32,0.72]
[1764255706269,3.12,141.34,141.32,0.72]
[1764255708578,3.12,141.34,141.32,11.44123654]
[1764255709077,3.12,141.34,141.33,0.72]
[1764255709464,3.12,141.34,141.33,7.79563857]
[1764255713179,0.67,141.39,141.33,11.44078681]
[1764255713376,3.12,141.38,141.34,4.36514824]
[1764255713777,3.12,141.38,141.35,0.72]
[1764255714287,3.12,141.38,141.35,7.79447471]
[1764255714487,10.19314481,141.38,141.36,0.72]
[1764255715887,3.12,141.37,141.36,0.72]
[1764255719768,10.86374323,141.37,141.34,0.72]
[1764255720896,0.67,141.36,141.33,11.44063169]
[1764255721077,0.67,141.36,141.34,0.72]
[1764255721385,10.19374323,141.37,141.34,0.72]
[1764255721592,10.86374323,141.37,141.34,0.72]
[1764255721778,0.67,141.36,141.33,7.07548345]
[1764255722093,0.67,141.36,141.33,7.79548345]
[1764255722863,0.67,141.36,141.32,3.64514824]
[1764255723069,3.64514824,141.35,141.31,1e-08]
[1764255723290,3.12,141.34,141.31,7.7965871]
[1764255723585,23.38262512,141.37,141.32,3.64514824]
[1764255723885,3.12,141.36,141.32,4.36514824]
[1764255724085,10.86440352,141.36,141.33,0.72]
[1764255724690,10.86440352,141.36,141.33,7.79557994]
[1764255724896,3.12,141.35,141.33,7.79557994]
[1764255725069,3.12,141.35,141.34,0.72]
[1764255725688,3.12,141.35,141.34,4.36514824]
[1764255725876,3.12,141.36,141.34,4.36514824]
[1764255726073,3.12,141.36,141.35,0.7]
[1764255726397,3.12,141.36,141.35,11.41978566]
[1764255727391,3.12,141.36,141.35,7.77463742]
[1764255729297,3.12,141.36,141.35,0.7]
[1764255729820,3.12,141.36,141.35,7.77463742]
[1764255731781,3.12,141.36,141.35,11.41978566]
[1764255732894,3.12,141.36,141.35,7.77463742]
[1764255733097,3.12,141.36,141.35,11.41978566]
[1764255733704,3.12,141.36,141.35,4.34514824]
[1764255734402,3.12,141.36,141.35,11.41978566]
[1764255734584,0.72,141.42,141.35,11.41978566]
[1764255734899,3.12,141.41,141.38,3.64514824]
[1764255735102,3.12,141.41,141.39,0.69]
[1764255735505,3.84,141.41,141.39,0.69]
[1764255735702,10.9116815,141.41,141.38,3.64514824]
[1764255735880,10.9116815,141.41,141.38,4.33514824]
[1764255736391,10.9116815,141.41,141.38,11.4082806]
[1764255736392,3.84,141.41,141.38,11.4082806]
[1764255737391,0.72,141.4,141.36,0.69]
[1764255737574,4.36514824,141.4,141.36,0.69]
[1764255737775,11.4377609,141.4,141.36,0.69]
[1764255737975,0.72,141.39,141.36,7.76413228]
[1764255738179,3.12,141.38,141.36,7.76413228]
[1764255738402,24.10027493,141.42,141.37,4.33514824]
[1764255738587,3.12,141.4,141.38,3.64514824]
[1764255738793,3.12,141.4,141.38,4.33514824]
[1764255738984,3.12,141.4,141.39,0.69]
[1764255740414,3.12,141.4,141.39,4.33514824]
[1764255740796,3.12,141.4,141.37,10.71873419]
[1764255741114,3.12,141.4,141.38,0.69]
[1764255742201,3.12,141.4,141.38,4.33514824]
[1764255742618,3.12,141.4,141.38,3.02269013]
[1764255748108,3.12,141.4,141.39,2.33269013]
[1764255748301,3.12,141.4,141.39,3.02269013]
[1764255748610,3.12,141.41,141.39,3.02269013]
[1764255748784,3.12,141.42,141.4,3.02269013]
[1764255749108,3.12,141.42,141.41,3.02269013]
[1764255750288,3.12,141.42,141.4,10.09433592]
[1764255750491,3.12,141.42,141.37,3.02269013]
[1764255750492,0.72,141.41,141.37,3.02269013]
[1764255750689,0.72,141.41,141.38,3.02269013]
[1764255750895,3.84,141.42,141.39,2.33269013]
[1764255751100,3.84,141.42,141.39,3.02269013]
[1764255751303,3.84,141.42,141.4,0.69]
[1764255751304,3.12,141.42,141.4,0.69]
[1764255751594,3.12,141.42,141.41,2.33269013]
[1764255751812,3.12,141.42,141.41,3.02269013]
[1764255752119,0.72,141.45,141.41,3.02269013]
[1764255752427,3.12,141.44,141.42,7.76113562]
[1764255752596,3.12,141.44,141.43,2.33269013]
[1764255754412,3.12,141.44,141.43,10.09332578]
[1764255756599,3.12,141.45,141.43,10.09332578]
[1764255756807,0.72,141.48,141.44,3.02269013]
[1764255757000,0.1,141.49,141.46,2.33269013]
[1764255757317,3.12,141.48,141.47,2.33269013]
[1764255757711,3.12,141.48,141.47,0.69]
[1764255757918,3.12,141.48,141.46,3.02269013]
[1764255758104,3.12,141.48,141.47,2.33269013]
[1764255758305,3.12,141.48,141.47,9.40132659]
[1764255760202,3.22,141.49,141.47,3.05269013]
[1764255760402,3.91,141.49,141.47,3.05269013]
[1764255760723,3.22,141.49,141.47,3.05269013]
[1764255761802,3.22,141.49,141.48,0.72]
[1764255762002,3.22,141.49,141.47,3.05269013]
[1764255762204,3.22,141.49,141.48,7.06813683]
[1764255763941,3.22,141.49,141.47,9.40119962]
[1764255764125,3.22,141.49,141.47,10.12119962]
[1764255764325,3.22,141.49,141.48,2.33269013]
[1764255765627,3.22,141.49,141.47,10.12119962]
[1764255765927,3.22,141.49,141.48,0.72]
[1764255766141,3.22,141.49,141.48,3.05269013]
[1764255766142,0.1,141.49,141.48,3.05269013]
[1764255766440,0.1,141.49,141.47,7.06830031]
[1764255766724,3.22,141.49,141.47,10.12099044]
[1764255767123,3.91,141.49,141.47,9.40099044]
[1764255768018,3.91,141.49,141.47,10.12099044]
[1764255768220,3.22,141.49,141.47,10.12099044]
[1764255768523,3.22,141.49,141.48,3.05269013]
[1764255768524,0.1,141.49,141.48,3.05269013]
[1764255770425,0.1,141.49,141.48,10.12082696]
[1764255771528,0.1,141.49,141.48,7.78813683]
[1764255771719,0.1,141.49,141.48,10.12082696]
[1764255773918,0.1,141.49,141.48,9.82082696]
[1764255781158,0.1,141.49,141.48,9.10082696]
[1764255781522,0.1,141.49,141.48,9.82082696]
[1764255782031,0.1,141.49,141.48,7.48813683]
[1764255782235,0.1,141.49,141.48,9.82082696]
[1764255783759,0.79,141.49,141.48,9.10082696]
[1764255784434,0.79,141.49,141.48,6.76813683]
[1764255784947,0.79,141.49,141.48,9.10082696]
[1764255785854,0.1,141.49,141.48,9.10082696]
[1764255787160,0.1,141.49,141.48,9.82082696]
[1764255800364,0.1,141.49,141.48,9.10082696]
[1764255800953,0.1,141.49,141.48,9.81082696]
[1764255804671,0.1,141.49,141.48,11.11692798]
[1764255813292,0.1,141.49,141.48,13.94708328]
[1764255820094,0.1,141.49,141.48,13.23708328]
[1764255821109,0.1,141.49,141.48,13.88708328]
[1764255831792,1e-08,141.49,141.48,22.6970282]
[1764255832091,0.1,141.54,141.53,16.308864]
[1764255832406,0.1,141.54,141.53,24.29301027]
[1764255832608,0.1,141.54,141.53,24.94301027]
[1764255832813,0.8,141.59,141.54,8.80994492]
[1764255833001,0.8,141.59,141.58,3.63879115]
[1764255833593,0.8,141.59,141.58,6.4673454]
[1764255833793,0.8,141.59,141.58,13.53048991]
[1764255834301,0.8,141.59,141.57,7.06342894]
[1764255834501,0.8,141.59,141.58,3.63879115]
[1764255835908,0.8,141.59,141.58,10.70193566]
[1764255840310,0.1,141.59,141.58,10.70193566]
[1764255840719,0.8,141.59,141.58,10.70193566]
[1764255840922,0.8,141.59,141.58,3.63879115]
[1764255841522,0.8,141.59,141.57,7.06343098]
[1764255842024,0.8,141.59,141.58,3.63879115]
[1764255842514,0.8,141.59,141.58,10.70193566]
[1764255844212,0.1,141.59,141.58,10.70193566]
[1764255844613,0.8,141.59,141.58,10.70193566]
[1764255845416,0.8,141.59,141.58,7.06314451]
[1764255845617,0.8,141.59,141.58,10.70193566]
[1764255845809,0.1,141.59,141.58,10.70193566]
[1764255846731,0.8,141.59,141.58,10.70193566]
[1764255848133,0.8,141.59,141.58,7.06314451]
[1764255848337,0.8,141.59,141.58,3.63879115]
[1764255849246,0.8,141.59,141.57,3.63879115]
[1764255851047,0.1,141.59,141.58,4.35879115]
[1764255851233,0.1,141.59,141.58,5.0651056]
[1764255851433,0.1,141.59,141.58,7.89325987]
[1764255851639,0.1,141.59,141.58,4.25446872]
[1764255851942,0.1,141.59,141.58,3.63879115]
[1764255852346,0.1,141.59,141.58,4.35879115]
[1764255852526,0.1,141.59,141.58,5.0651056]
[1764255852939,0.1,141.6,141.59,8.80994492]
[1764255853141,0.1,141.6,141.59,13.16873607]
[1764255854345,1e-08,141.6,141.59,33.11639122]
[1764255854526,0.1,141.61,141.59,33.11639122]
[1764255854725,0.1,141.61,141.6,20.6337419]
[1764255854925,0.1,141.61,141.6,27.69588879]
[1764255855254,0.1,141.61,141.6,24.05709764]
[1764255855425,0.1,141.63,141.61,8.80994492]
[1764255855628,0.1,141.63,141.62,3.63879115]
[1764255855922,0.1,141.63,141.62,7.1861458]
[1764255856128,0.1,141.63,141.62,23.4950098]
[1764255857024,0.1,141.63,141.62,30.55615935]
[1764255858323,0.1,141.63,141.62,10.6999407]
[1764255861742,0.1,141.63,141.62,11.4199407]
[1764255862681,0.1,141.63,141.62,27.7288047]
[1764255862836,0.1,141.63,141.62,30.55615935]
[1764255863535,0.1,141.63,141.62,29.83615935]
[1764255864248,0.1,141.63,141.62,27.0088047]
[1764255866341,0.1,141.63,141.62,27.7288047]
[1764255866555,0.1,141.63,141.62,26.41367068]
[1764255866949,0.1,141.63,141.62,29.24102533]
[1764255867150,0.1,141.63,141.62,38.05097025]
[1764255869043,1e-08,141.63,141.62,38.05097025]
[1764255870038,0.1,141.65,141.63,8.80994492]
[1764255870243,1e-08,141.67,141.66,25.11880892]
[1764255870478,0.68,141.72,141.66,115.56301014]
[1764255870664,0.78,141.74,141.71,2.32365713]
[1764255870851,0.78,141.74,141.68,9.29462852]
[1764255870852,0.1,141.74,141.7,11.92994492]
[1764255871058,0.1,141.74,141.73,2.32365713]
[1764255871372,0.1,141.74,141.73,8.80994492]
[1764255871553,0.1,141.74,141.72,17.028864]
[1764255871742,0.1,141.74,141.73,11.85360205]
[1764255871947,0.1,141.78,141.73,14.17725918]
[1764255872171,0.1,141.78,141.77,18.18728054]
[1764255872355,0.1,141.78,141.77,18.90728054]
[1764255872972,0.68,141.84,141.78,8.80994492]
[1764255873174,0.68,141.84,141.83,2.32365713]
[1764255873473,1.1,141.9,141.79,3.12]
[1764255873474,0.68,141.85,141.81,8.80994492]
[1764255873663,0.68,141.85,141.84,2.32365713]
[1764255873867,0.68,141.85,141.83,2.32365713]
[1764255874056,0.68,141.85,141.8,16.308864]
[1764255874271,0.68,141.85,141.81,2.32365713]
[1764255874554,0.68,141.85,141.79,7.05261039]
[1764255874753,7.72974367,141.85,141.8,2.32365713]
[1764255875256,0.68,141.84,141.79,2.32365713]
[1764255875465,2.32365713,141.83,141.77,2.32365713]
[1764255875668,0.68,141.82,141.77,9.37729169]
[1764255875861,0.68,141.82,141.78,2.32365713]
[1764255876450,7.73120008,141.82,141.78,2.32365713]
[1764255876781,7.73120008,141.82,141.77,9.37719488]
[1764255876992,0.68,141.81,141.78,2.32365713]
[1764255877450,0.68,141.81,141.77,9.37719488]
[1764255877649,0.68,141.81,141.78,2.32365713]
[1764255878586,0.68,141.81,141.75,15.22588113]
[1764255878754,0.68,141.81,141.78,2.32365713]
[1764255878952,0.68,141.81,141.75,49.21153872]
[1764255879454,0.68,141.81,141.76,0.72]
[1764255879656,0.68,141.81,141.8,2.32365713]
[1764255879853,0.68,141.81,141.76,0.72]
[1764255880052,0.68,141.81,141.79,2.32365713]
[1764255880377,26.42955914,141.89,141.8,9.37553834]
[1764255880378,7.04820975,141.88,141.8,9.37553834]
[1764255880558,2.32365713,141.86,141.81,2.32365713]
[1764255881081,3.01365713,141.85,141.8,9.37553834]
[1764255881377,0.69,141.85,141.8,9.37553834]
[1764255881578,0.69,141.84,141.79,2.32365713]
[1764255882248,3.01365713,141.84,141.78,25.68556964]
[1764255882456,3.01365713,141.84,141.78,2.32365713]
[1764255882457,9.37457313,141.83,141.78,2.32365713]
[1764255882665,9.37457313,141.83,141.78,9.37678254]
[1764255882866,0.69,141.82,141.78,9.37678254]
[1764255884272,0.69,141.82,141.78,7.05312541]
[1764255884684,0.69,141.82,141.78,9.37678254]
[1764255885052,0.69,141.82,141.77,7.05360217]
[1764255885364,0.69,141.82,141.78,2.32365713]
[1764255885564,0.69,141.82,141.79,2.32365713]
[1764255885771,7.74119499,141.82,141.78,2.32365713]
[1764255886179,0.69,141.81,141.78,2.32365713]
[1764255886486,0.69,141.81,141.77,9.37715205]
[1764255886671,3.12,141.8,141.75,7.05422215]
[1764255886856,5.44365713,141.8,141.74,16.308864]
[1764255887181,0.69,141.79,141.74,18.63252113]
[1764255887481,0.69,141.79,141.74,9.3786676]
[1764255887855,0.69,141.79,141.74,25.35293907]
[1764255888070,0.69,141.79,141.76,2.32365713]
[1764255889278,0.69,141.79,141.76,9.37737978]
[1764255889481,0.69,141.79,141.76,7.05372265]
[1764255889788,23.35909255,141.84,141.77,2.32365713]
[1764255889967,0.69,141.8,141.78,2.32365713]
[1764255890154,3.12,141.83,141.79,2.32365713]
[1764255890483,0.69,141.82,141.8,2.32365713]
[1764255891286,3.81,141.84,141.81,9.375346]
[1764255891652,0.69,141.83,141.81,9.375346]
[1764255891854,3.12,141.85,141.81,7.05168887]
[1764255892093,0.69,141.84,141.81,9.375346]
[1764255892594,0.69,141.84,141.82,2.32365713]
[1764255892756,0.69,141.84,141.81,7.05168887]
[1764255892954,0.69,141.84,141.81,9.375346]
[1764255896283,0.69,141.84,141.82,2.32365713]
[1764255896588,0.69,141.84,141.81,9.375346]
[1764255897282,0.69,141.84,141.81,25.34091106]
[1764255897481,0.69,141.84,141.83,2.32365713]
[1764255898170,0.69,141.84,141.82,2.32365713]
[1764255898360,0.69,141.84,141.81,7.05168887]
[1764255898565,0.69,141.84,141.81,9.375346]
[1764255898981,0.69,141.84,141.82,2.32365713]
[1764255899188,0.69,141.84,141.79,23.36120741]
[1764255899388,0.69,141.84,141.82,2.32365713]
[1764255900904,0.69,141.86,141.83,2.98365713]
[1764255901068,0.69,141.86,141.84,2.32365713]
[1764255901273,0.69,141.85,141.83,2.32365713]
[1764255901697,0.69,141.85,141.84,2.32365713]
[1764255901898,0.69,141.85,141.81,25.34091106]
[1764255902197,0.69,141.85,141.83,2.32365713]
[1764255902405,0.69,141.85,141.83,7.05042298]
[1764255902712,0.69,141.85,141.83,9.37408011]
[1764255903574,0.69,141.85,141.82,7.05114723]
[1764255903771,7.73976377,141.85,141.81,7.05147302]
[1764255904073,0.69,141.84,141.81,7.05147302]
[1764255904274,0.69,141.84,141.8,9.37563124]
[1764255904581,10.0639978,141.84,141.78,16.308864]
[1764255904799,0.69,141.83,141.81,2.32365713]
[1764255904974,0.69,141.83,141.8,2.32365713]
[1764255905487,0.69,141.83,141.78,23.36201814]
[1764255905488,0.69,141.83,141.81,2.32365713]
[1764255905810,0.69,141.83,141.8,2.32365713]
[1764255906170,0.69,141.83,141.78,23.36201814]
[1764255906366,0.69,141.83,141.78,16.308864]
[1764255906573,0.69,141.83,141.78,25.68562532]
[1764255906574,7.74071417,141.83,141.78,25.68562532]
[1764255907099,0.69,141.82,141.79,2.32365713]
[1764255907472,0.69,141.82,141.78,9.37676132]
[1764255907828,2.32365713,141.8,141.75,7.05465136]
[1764255908112,5.44365713,141.79,141.72,18.30012657]
[1764255908276,6.13365713,141.79,141.74,2.32365713]
[1764255908474,6.13365713,141.79,141.74,9.37863134]
[1764255908475,0.69,141.78,141.74,9.37863134]
[1764255908989,0.69,141.78,141.75,2.32365713]
[1764255909191,3.81,141.79,141.76,2.32365713]
[1764255909583,0.72,141.78,141.74,7.05497421]
[1764255909784,0.72,141.78,141.73,7.05549741]
[1764255909987,0.72,141.78,141.73,7.73549741]
[1764255910276,3.12,141.79,141.74,0.72]
[1764255910575,0.7,141.78,141.75,2.32365713]
[1764255910908,0.7,141.78,141.74,7.77510312]
[1764255911072,0.7,141.78,141.75,2.32365713]
[1764255911985,0.7,141.78,141.74,7.77510312]
[1764255912391,0.7,141.78,141.74,7.05510312]
[1764255912703,0.7,141.78,141.75,2.32365713]
[1764255912873,0.7,141.78,141.74,10.09876025]
[1764255913389,0.7,141.78,141.75,3.04365713]
[1764255913702,3.82,141.78,141.75,2.32365713]
[1764255913896,3.82,141.78,141.74,7.05510312]
[1764255914115,0.7,141.77,141.73,2.32365713]
[1764255914286,3.02365713,141.77,141.72,2.32365713]
[1764255914486,10.07748763,141.77,141.72,2.32365713]
[1764255914707,0.7,141.76,141.72,2.32365713]
[1764255914911,3.02365713,141.76,141.71,9.3799785]
[1764255915094,3.12,141.75,141.73,2.32365713]
[1764255915413,3.82,141.75,141.71,25.41798392]
[1764255915612,3.02365713,141.74,141.68,7.77803385]
[1764255915819,3.12,141.73,141.68,7.77803385]
[1764255915988,3.82,141.74,141.71,18.63252113]
[1764255916189,3.82,141.74,141.72,2.32365713]
[1764255916484,3.12,141.74,141.72,2.32365713]
[1764255916701,3.82,141.74,141.73,2.32365713]
[1764255917084,3.82,141.74,141.72,7.05615344]
[1764255917506,3.82,141.74,141.73,2.32365713]
[1764255917707,0.7,141.74,141.73,2.32365713]
[1764255918398,0.7,141.74,141.72,9.37981057]
[1764255918597,0.7,141.74,141.72,2.32365713]
[1764255919687,3.12,141.75,141.72,2.32365713]
[1764255919988,0.7,141.74,141.72,2.32365713]
[1764255920496,0.7,141.74,141.73,7.05566923]
[1764255921183,0.7,141.74,141.72,9.37971164]
[1764255921807,0.7,141.74,141.72,7.05605451]
[1764255922909,0.7,141.75,141.72,10.09971164]
[1764255923118,3.82,141.76,141.74,2.32365713]
[1764255923416,3.82,141.76,141.73,2.32365713]
[1764255924294,0.7,141.75,141.72,7.77605451]
[1764255924501,0.7,141.75,141.73,2.32365713]
[1764255925390,0.7,141.75,141.72,25.41647223]
[1764255925591,0.7,141.75,141.73,2.32365713]
[1764255926492,0.7,141.77,141.73,3.04365713]
[1764255926691,3.82,141.76,141.74,7.05517144]
[1764255927097,0.7,141.75,141.74,7.05517144]
[1764255928798,0.7,141.75,141.73,7.05552752]
[1764255929019,0.7,141.75,141.73,10.68227097]
[1764255929517,0.7,141.75,141.73,7.05552752]
[1764255929913,3.82,141.76,141.74,3.62674345]
[1764255930430,0.7,141.75,141.74,3.62674345]
[1764255930914,7.05171775,141.81,141.74,28.31984349]
[1764255931093,0.7,141.78,141.77,3.62674345]
[1764255931293,0.7,141.78,141.76,3.62674345]
[1764255931490,3.82,141.79,141.77,3.62674345]
[1764255931696,0.7,141.8,141.78,3.62674345]
[1764255932906,3.12,141.81,141.79,3.62674345]
[1764255933095,3.82,141.81,141.79,3.62674345]
[1764255933300,0.7,141.8,141.79,3.62674345]
[1764255933523,0.7,141.8,141.78,10.67957763]
[1764255934624,17.62491306,141.85,141.78,10.67957763]
[1764255934625,0.7,141.82,141.79,3.62674345]
[1764255934924,3.82,141.82,141.78,25.40578664]
[1764255935223,3.82,141.82,141.8,3.62674345]
[1764255935425,0.7,141.81,141.8,3.62674345]
[1764255935993,0.7,141.81,141.8,10.67892962]
[1764255936206,3.82,141.82,141.8,10.67892962]
[1764255938514,3.82,141.82,141.81,3.62674345]
[1764255938921,3.12,141.82,141.81,3.62674345]
[1764255940724,3.12,141.82,141.81,10.67843232]
[1764255942003,0.7,141.83,141.81,10.67843232]
[1764255943928,3.82,141.84,141.81,11.36843232]
[1764255945519,3.82,141.84,141.81,3.62674345]
[1764255945727,3.82,141.84,141.82,3.62674345]
[1764255946805,3.82,141.86,141.83,4.31674345]
[1764255947022,3.82,141.86,141.84,3.62674345]
[1764255948205,0.7,141.85,141.81,7.05150269]
[1764255948405,0.7,141.85,141.82,3.62674345]
[1764255949627,0.7,141.85,141.83,7.05069449]
[1764255950723,0.7,141.85,141.83,10.67743794]
[1764255951030,0.7,141.85,141.83,7.05069449]
[1764255951233,0.7,141.85,141.83,10.67743794]
[1764255952229,0.7,141.85,141.83,7.05069449]
[1764255954242,0.7,141.85,141.81,3.62674345]
[1764255954530,11.37647027,141.85,141.8,3.62674345]
[1764255954928,0.7,141.84,141.8,3.62674345]
[1764255955716,3.62674345,141.83,141.78,7.05300051]
[1764255955922,3.12,141.82,141.78,10.67974396]
[1764255956234,3.62674345,141.81,141.76,3.62674345]
[1764255956438,3.62674345,141.78,141.73,21.26543178]
[1764255956734,3.12,141.77,141.74,7.05500736]
[1764255956929,3.82,141.77,141.74,7.05500736]
[1764255957134,0.7,141.76,141.74,7.05500736]
[1764255957607,3.12,141.77,141.74,11.37175081]
[1764255957812,3.82,141.77,141.74,11.37175081]
[1764255958033,3.82,141.77,141.74,10.68175081]
[1764255959435,3.82,141.77,141.74,11.37175081]
[1764255959642,3.82,141.77,141.75,3.62674345]
[1764255960333,0.7,141.76,141.73,10.68221287]
[1764255960710,4.32674345,141.76,141.72,10.68290132]
[1764255960932,3.62674345,141.75,141.69,17.64308546]
[1764255961133,4.32674345,141.75,141.69,0.69]
[1764255961338,0.7,141.74,141.7,3.62674345]
[1764255961548,3.12,141.73,141.71,3.62674345]
[1764255961715,3.12,141.73,141.7,4.31674345]
[1764255962033,3.82,141.73,141.7,11.37389195]
[1764255962637,3.82,141.73,141.7,4.31674345]
[1764255963022,3.82,141.73,141.7,11.3738764]
[1764255964915,0.7,141.72,141.7,3.62674345]
[1764255965336,3.12,141.73,141.7,3.62674345]
[1764255965531,3.82,141.73,141.69,7.05746479]
[1764255965845,3.82,141.73,141.7,4.31674345]
[1764255966728,10.87576668,141.73,141.7,4.31674345]
[1764255967760,0.7,141.72,141.69,3.62674345]
[1764255968052,0.7,141.72,141.68,3.62674345]
[1764255968222,0.7,141.72,141.68,4.31674345]
[1764255968645,11.3830935,141.72,141.68,3.62674345]
[1764255969026,0.7,141.71,141.68,7.05814601]
[1764255969227,0.7,141.71,141.68,10.68488946]
[1764255971020,7.75677884,141.71,141.66,23.36781994]
[1764255971220,7.75677884,141.71,141.67,4.31674345]
[1764255971417,0.71,141.7,141.67,4.31674345]
[1764255972247,0.71,141.7,141.67,11.37505129]
[1764255973545,0.71,141.7,141.67,10.68505129]
[1764255973841,0.71,141.7,141.66,10.68583874]
[1764255974035,3.12,141.69,141.66,3.62674345]
[1764255974439,3.83,141.69,141.66,4.31674345]
[1764255975524,3.83,141.69,141.66,11.37579469]
[1764255975924,0.71,141.68,141.65,7.0594435]
[1764255976125,4.33674345,141.68,141.63,3.62674345]
[1764255976343,4.33674345,141.68,141.62,4.31674345]
[1764255976656,0.71,141.67,141.62,4.31674345]
[1764255976851,4.33674345,141.67,141.62,4.31674345]
[1764255977354,0.71,141.66,141.62,4.31674345]
[1764255977550,3.12,141.65,141.62,11.37766948]
[1764255978052,3.83,141.65,141.62,11.37766948]
[1764255979630,3.83,141.65,141.63,3.62674345]
[1764255980238,0.71,141.65,141.63,3.62674345]
[1764255981256,3.12,141.67,141.64,4.31674345]
[1764255981449,3.12,141.67,141.64,0.69]
[1764255981640,3.12,141.67,141.66,3.62674345]
[1764255982035,3.83,141.67,141.65,3.62674345]
[1764255982735,3.12,141.67,141.65,3.62674345]
[1764255983037,0.71,141.66,141.65,3.62674345]
[1764255983234,3.83,141.67,141.65,3.62674345]
[1764255983555,3.83,141.67,141.64,7.7499607]
[1764255983742,3.83,141.67,141.65,3.62674345]
[1764255984460,3.12,141.67,141.65,3.62674345]
[1764255984755,3.12,141.67,141.65,10.68599982]
[1764255985853,3.83,141.67,141.65,7.05925637]
[1764255986162,3.12,141.67,141.65,3.62674345]
[1764255986339,3.83,141.67,141.65,3.62674345]
[1764255986672,0.71,141.66,141.63,7.06052075]
[1764255986868,4.33674345,141.66,141.6,7.26197056]
[1764255987157,4.33674345,141.66,141.6,0.89]
[1764255987459,0.71,141.65,141.6,7.95208641]
[1764255987660,0.71,141.65,141.61,3.62674345]
[1764255988167,0.71,141.65,141.6,0.2]
[1764255988168,3.62674345,141.63,141.6,0.2]
[1764255988363,7.45674345,141.62,141.6,0.2]
[1764255988559,2.32668331,141.61,141.6,0.2]
[1764255988744,3.83,141.62,141.6,2.52668331]
[1764255989063,3.12,141.62,141.6,2.52668331]
[1764255989365,3.83,141.62,141.6,2.52668331]
[1764255989540,3.83,141.62,141.6,0.2]
[1764255989862,3.12,141.62,141.61,3.01668331]
[1764255990160,3.12,141.62,141.61,10.07833149]
[1764255990362,3.12,141.62,141.6,24.26097363]
[1764255990546,3.12,141.62,141.61,2.32668331]
[1764255990937,3.12,141.62,141.6,24.26097363]
[1764255991132,3.12,141.62,141.6,26.58765694]
[1764255992344,3.12,141.62,141.6,24.26097363]
[1764255992545,3.12,141.62,141.6,9.58879294]
[1764255993060,3.83,141.63,141.6,7.26210963]
[1764255993262,3.83,141.63,141.6,9.58879294]
[1764255994063,0.71,141.62,141.6,7.26188419]
[1764255994265,3.83,141.63,141.6,10.2785675]
[1764255994561,3.12,141.64,141.62,2.32668331]
[1764255994746,3.83,141.64,141.62,2.32668331]
[1764255994951,3.12,141.64,141.62,3.01668331]
[1764255996066,3.12,141.64,141.62,10.07767284]
[1764255996768,3.12,141.64,141.62,9.38767284]
[1764255997065,3.83,141.64,141.62,9.38767284]
[1764255997650,3.12,141.64,141.63,3.01668331]
[1764255998069,3.12,141.64,141.63,2.32668331]
[1764255999368,0.71,141.64,141.6,0.89]
[1764255999566,0.71,141.63,141.61,2.32668331]
[1764255999750,0.71,141.63,141.6,9.58881616]
[1764255999948,0.71,141.63,141.61,2.32668331]
[1764256001170,3.12,141.64,141.61,2.32668331]
[1764256001369,0.67,141.63,141.61,2.32668331]
[1764256001570,3.79,141.64,141.61,2.32668331]
[1764256001755,3.79,141.64,141.62,2.32668331]
[1764256002660,0.67,141.63,141.6,7.26196245]
[1764256002848,0.67,141.63,141.6,9.58864576]